bitfinex/quotes_BTCUSD_20220111
["timestamp","ask_amount","ask_price","bid_price","bid_amount"]
[1641902653407,1.73654122,41774.0,41773.0,0.00076755]
[1641902653607,0.48530122,41774.0,41773.0,0.00076755]
[1641902654216,0.85807726,41772.0,41771.0,0.00076761]
[1641902654408,0.35577726,41772.0,41771.0,0.00070761]
[1641902655252,0.36477726,41772.0,41771.0,0.00070761]
[1641902655454,0.36477726,41772.0,41768.0,6.755e-05]
[1641902655654,0.36477726,41772.0,41768.0,7.55e-06]
[1641902655856,0.29182533,41771.0,41770.0,0.009579]
[1641902656056,0.33952533,41771.0,41770.0,0.009579]
[1641902656861,0.33952533,41771.0,41770.0,0.009519]
[1641902657259,0.34552533,41771.0,41770.0,0.009519]
[1641902657457,0.73845119,41771.0,41770.0,0.009519]
[1641902657658,0.74582992,41771.0,41770.0,0.009519]
[1641902658057,0.74582992,41771.0,41770.0,0.009459]
[1641902658503,0.33952533,41771.0,41770.0,0.009459]
[1641902659305,0.34852533,41771.0,41770.0,0.009399]
[1641902660107,0.72341033,41771.0,41770.0,0.009399]
[1641902660406,0.71441033,41771.0,41770.0,0.009399]
[1641902660605,0.71441033,41771.0,41770.0,0.01045642]
[1641902661206,0.72141033,41771.0,41770.0,0.01045642]
[1641902661807,0.72141033,41771.0,41770.0,0.01039642]
[1641902662010,1.11809243,41771.0,41770.0,0.01039642]
[1641902662260,0.72141033,41771.0,41770.0,0.01039642]
[1641902662454,0.71441033,41771.0,41770.0,0.01039642]
[1641902663054,0.71441033,41771.0,41770.0,0.01033642]
[1641902663256,0.72241033,41771.0,41770.0,0.01033642]
[1641902663457,0.430585,41771.0,41770.0,0.01033642]
[1641902664261,0.430585,41771.0,41770.0,0.01027642]
[1641902664459,0.422585,41771.0,41770.0,0.01027642]
[1641902665260,0.429585,41771.0,41770.0,0.01027642]
[1641902665461,1.029585,41771.0,41770.0,0.01021642]
[1641902665661,0.429585,41771.0,41770.0,0.01021642]
[1641902665861,0.429585,41771.0,41770.0,0.00111742]
[1641902666503,0.4414521,41771.0,41763.0,0.4199556]
[1641902666704,0.0477,41771.0,41763.0,0.4199556]
[1641902666904,0.0477,41771.0,41767.0,0.009579]
[1641902667310,0.0487,41771.0,41767.0,0.009579]
[1641902668004,0.0487,41771.0,41767.0,0.009519]
[1641902668405,0.03394866,41769.0,41762.0,0.5612]
[1641902668605,0.32076811,41763.0,41762.0,0.5612]
[1641902668807,0.32076811,41763.0,41761.0,0.0022]
[1641902669006,0.7477,41762.0,41759.0,0.001]
[1641902669206,0.44821512,41762.0,41759.0,0.001]
[1641902669409,0.0477,41762.0,41761.0,0.009581]
[1641902669956,0.0477,41762.0,41758.0,0.16398163]
[1641902670552,0.04764,41762.0,41758.0,0.16398163]
[1641902670752,0.34645785,41761.0,41758.0,0.16398163]
[1641902670955,0.0477,41760.0,41758.0,0.16466014]
[1641902671154,0.0477,41760.0,41758.0,0.16460014]
[1641902671756,0.04764,41760.0,41758.0,0.16460014]
[1641902672156,0.04764,41760.0,41758.0,0.16392163]
[1641902672355,0.04764,41760.0,41758.0,0.16386163]
[1641902672856,0.04758,41760.0,41758.0,0.16386163]
[1641902673255,0.003,41760.0,41758.0,0.16386163]
[1641902673510,0.003,41760.0,41758.0,0.16380163]
[1641902674111,0.00294,41760.0,41758.0,0.16380163]
[1641902674513,0.34645785,41761.0,41758.0,0.16380163]
[1641902674713,0.34645785,41761.0,41758.0,0.16374163]
[1641902675317,0.34939785,41761.0,41758.0,0.16374163]
[1641902675913,0.34939785,41761.0,41758.0,0.16368163]
[1641902676513,0.34633785,41761.0,41758.0,0.16368163]
[1641902677114,0.34633785,41761.0,41758.0,0.16362163]
[1641902677354,0.34933785,41761.0,41758.0,0.21362163]
[1641902677751,0.34927785,41761.0,41758.0,0.21362163]
[1641902677956,0.34927785,41761.0,41758.0,0.16362163]
[1641902678352,0.34927785,41761.0,41758.0,0.16356163]
[1641902678552,0.34627785,41761.0,41758.0,0.16356163]
[1641902678952,0.34621785,41761.0,41758.0,0.16356163]
[1641902679152,0.34621785,41761.0,41757.0,0.01012355]
[1641902679354,0.34921785,41761.0,41757.0,0.01015084]
[1641902679552,0.34921785,41761.0,41757.0,0.01009084]
[1641902679954,0.74285623,41761.0,41757.0,0.01009084]
[1641902680253,0.74280907,41761.0,41757.0,0.01009084]
[1641902680457,0.74280907,41761.0,41756.0,0.009521]
[1641902680458,1.35,41760.0,41756.0,0.009521]
[1641902680758,1.35128269,41758.0,41752.0,0.08563858]
[1641902681010,0.00123543,41755.0,41752.0,0.08563858]
[1641902681211,0.00123543,41755.0,41751.0,0.01477143]
[1641902681212,0.69713896,41754.0,41751.0,0.01477143]
[1641902681611,0.29096514,41753.0,41751.0,0.01477143]
[1641902681810,0.29096514,41753.0,41751.0,0.0124317]
[1641902682811,1.44176141,41752.0,41751.0,0.0124317]
[1641902683020,1.44176141,41752.0,41750.0,0.00101239]
[1641902683021,0.374885,41751.0,41750.0,0.00101239]
[1641902683212,0.51523745,41751.0,41750.0,0.00101239]
[1641902683412,0.93782245,41751.0,41750.0,0.00101239]
[1641902684214,0.93782245,41751.0,41750.0,0.0002151]
[1641902684861,0.515865,41751.0,41750.0,0.0002151]
[1641902685261,0.537865,41751.0,41750.0,0.0002151]
[1641902685459,0.537865,41751.0,41750.0,0.0001551]
[1641902685861,0.16298,41751.0,41749.0,0.0058391]
[1641902686064,0.11528,41751.0,41749.0,0.0058391]
[1641902686264,0.022,41751.0,41749.0,0.0058391]
[1641902686661,0.29096514,41753.0,41749.0,0.0057791]
[1641902687064,0.77825471,41752.0,41749.0,0.0057791]
[1641902687864,0.77825471,41752.0,41749.0,0.0057191]
[1641902688269,0.374885,41752.0,41749.0,0.0057191]
[1641902689108,0.374885,41752.0,41749.0,0.0056591]
[1641902689109,0.43021806,41751.0,41749.0,0.0056591]
[1641902689309,0.09876,41750.0,41749.0,0.0056591]
[1641902690308,0.09876,41750.0,41749.0,0.0055991]
[1641902691310,0.12476,41750.0,41749.0,0.0055991]
[1641902691708,0.12476,41750.0,41749.0,0.0055391]
[1641902692452,0.54148622,41750.0,41749.0,0.0055391]
[1641902692652,0.51548622,41750.0,41749.0,0.0055391]
[1641902693054,0.51548622,41750.0,41749.0,0.0054791]
[1641902693253,0.54048622,41750.0,41749.0,0.0054791]
[1641902694352,0.54048622,41750.0,41749.0,0.0054191]
[1641902694555,0.09876,41750.0,41749.0,0.0054191]
[1641902695352,0.12876,41750.0,41749.0,0.0054191]
[1641902695553,0.12876,41750.0,41749.0,0.0053591]
[1641902696007,0.12876,41750.0,41749.0,0.0011]
[1641902696212,0.1300211,41750.0,41749.0,0.0011]
[1641902696609,0.1000211,41750.0,41749.0,0.0011]
[1641902696810,0.1000211,41750.0,41749.0,0.00104]
[1641902697012,0.374885,41749.0,41748.0,0.0011]
[1641902697211,1.724885,41749.0,41748.0,0.0011]
[1641902697413,0.374885,41749.0,41748.0,0.0011]
[1641902697609,0.874885,41749.0,41748.0,0.0011]
[1641902697811,1.15,41747.0,41744.0,0.001339]
[1641902698111,1.15,41747.0,41744.0,0.001279]
[1641902698310,0.42131536,41746.0,41744.0,0.001279]
[1641902698510,0.42131536,41746.0,41744.0,0.010865]
[1641902698910,1.00915089,41746.0,41744.0,0.010865]
[1641902699110,0.0477,41745.0,41744.0,0.010865]
[1641902699311,0.0477,41745.0,41744.0,0.010805]
[1641902700557,0.0477,41745.0,41744.0,0.010745]
[1641902700956,0.07275277,41745.0,41744.0,0.010745]
[1641902701360,0.08275277,41745.0,41744.0,0.010745]
[1641902701757,0.08275277,41745.0,41744.0,0.010685]
[1641902702660,0.07275277,41745.0,41744.0,0.010685]
[1641902702960,0.07275277,41745.0,41744.0,0.010625]
[1641902703361,0.08175277,41745.0,41744.0,0.010625]
[1641902704017,0.08175277,41745.0,41744.0,0.010565]
[1641902704611,0.95,41744.0,41742.0,0.00066392]
[1641902704812,0.8977,41743.0,41742.0,0.00066392]
[1641902705211,0.8977,41743.0,41742.0,0.00060392]
[1641902705412,0.0647,41743.0,41742.0,0.00060392]
[1641902705613,0.0647,41743.0,41739.0,0.009586]
[1641902705814,0.0647,41743.0,41737.0,0.0011]
[1641902706014,0.0012517,41740.0,41737.0,0.0011]
[1641902706215,0.6656328,41739.0,41737.0,0.0011]
[1641902706416,0.6656328,41739.0,41737.0,0.00104]
[1641902706816,0.64184649,41738.0,41737.0,0.00104]
[1641902707017,0.68954649,41738.0,41737.0,0.00104]
[1641902707266,0.0477,41738.0,41737.0,0.00104]
[1641902707456,0.0547,41738.0,41737.0,0.00104]
[1641902707656,0.0547,41738.0,41737.0,0.00098]
[1641902708656,0.0477,41738.0,41737.0,0.00098]
[1641902708857,0.0477,41738.0,41737.0,0.00092]
[1641902709262,0.422585,41738.0,41737.0,0.00092]
[1641902709460,0.429585,41738.0,41737.0,0.00092]
[1641902710062,0.429585,41738.0,41737.0,0.00086]
[1641902710260,0.82607015,41738.0,41737.0,0.00086]
[1641902710664,0.81956232,41738.0,41737.0,0.00086]
[1641902710864,0.85622481,41738.0,41737.0,0.00086]
[1641902711308,0.85622481,41738.0,41737.0,0.0008]
[1641902711309,0.427585,41738.0,41737.0,0.0008]
[1641902711914,0.379885,41738.0,41737.0,0.0008]
[1641902712411,0.005,41738.0,41737.0,0.0008]
[1641902712610,0.28875085,41744.0,41737.0,0.66786496]
[1641902712809,0.28875085,41744.0,41737.0,0.475625]
[1641902713011,0.54165883,41744.0,41737.0,0.475625]
[1641902713411,0.54165883,41744.0,41737.0,0.10074]
[1641902713610,0.54165883,41744.0,41737.0,0.00074]
[1641902714013,0.35548703,41741.0,41737.0,0.00074]
[1641902714212,0.35548703,41741.0,41738.0,0.70786789]
[1641902714515,0.25290798,41744.0,41738.0,0.80780789]
[1641902715358,0.27590798,41744.0,41739.0,0.00058228]
[1641902715759,0.27590798,41744.0,41739.0,0.00052228]
[1641902716164,0.41124638,41742.0,41739.0,0.00052228]
[1641902716360,0.41118638,41742.0,41739.0,0.00052228]
[1641902716560,0.41118638,41742.0,41738.0,0.44146062]
[1641902716961,0.41118638,41742.0,41738.0,0.44140062]
[1641902717166,0.41118638,41742.0,41738.0,0.43240062]
[1641902717362,0.41118638,41742.0,41738.0,0.44740062]
[1641902717565,0.41112638,41742.0,41738.0,0.44740062]
[1641902718064,0.41112638,41742.0,41739.0,0.375154]
[1641902718263,0.41112638,41742.0,41740.0,0.38245145]
[1641902718506,0.25290798,41744.0,41740.0,0.48245145]
[1641902718906,0.25284798,41744.0,41740.0,0.48245145]
[1641902719308,0.25284798,41744.0,41740.0,0.49545145]
[1641902719507,0.25284798,41744.0,41740.0,0.49539145]
[1641902719710,0.25284798,41744.0,41740.0,0.11294]
[1641902719907,0.36576048,41742.0,41740.0,0.11294]
[1641902720108,0.36570048,41742.0,41740.0,0.11294]
[1641902720408,0.36570048,41742.0,41740.0,0.06294]
[1641902720707,0.36570048,41742.0,41739.0,0.00072497]
[1641902720907,0.36570048,41742.0,41739.0,0.00066497]
[1641902721108,0.00077776,41749.0,41740.0,0.28065945]
[1641902721310,0.26371575,41749.0,41740.0,0.28065945]
[1641902721508,0.26299799,41749.0,41740.0,0.38065945]
[1641902721911,0.26299799,41749.0,41740.0,0.05]
[1641902722359,0.45070147,41743.0,41739.0,0.065]
[1641902722556,0.45064147,41743.0,41738.0,0.52640466]
[1641902722955,0.45064147,41743.0,41738.0,0.81137223]
[1641902723354,0.45064147,41743.0,41738.0,0.39796757]
[1641902723555,0.45064147,41743.0,41739.0,0.38240192]
[1641902723757,0.45064147,41743.0,41739.0,0.38454389]
[1641902723758,0.45058147,41743.0,41739.0,0.38454389]
[1641902724356,0.45058147,41743.0,41739.0,0.38448389]
[1641902725060,0.45052147,41743.0,41739.0,0.38514154]
[1641902725257,0.00721438,41747.0,41739.0,0.38514154]
[1641902725456,0.021,41743.0,41739.0,0.39514154]
[1641902725656,0.021,41743.0,41741.0,0.2716309]
[1641902726110,0.021,41743.0,41741.0,0.3216309]
[1641902726310,0.02094,41743.0,41741.0,0.3216309]
[1641902726711,0.00721438,41747.0,41741.0,0.3216309]
[1641902727513,0.03615438,41747.0,41741.0,0.3316309]
[1641902728715,0.00715438,41747.0,41741.0,0.3216309]
[1641902729516,0.03415438,41747.0,41741.0,0.3316309]
[1641902730659,0.00715438,41747.0,41741.0,0.3216309]
[1641902731060,0.00715438,41747.0,41742.0,0.39501932]
[1641902731261,0.00709438,41747.0,41742.0,0.39501932]
[1641902731460,0.03309438,41747.0,41742.0,0.39501932]
[1641902732063,0.03309438,41747.0,41741.0,0.3622009]
[1641902732262,0.03309438,41747.0,41741.0,0.3316309]
[1641902732664,0.00709438,41747.0,41741.0,0.3216309]
[1641902733514,0.03409438,41747.0,41744.0,0.26414905]
[1641902733715,0.03409438,41747.0,41742.0,0.46959882]
[1641902733716,0.03403438,41747.0,41742.0,0.46959882]
[1641902734015,0.03403438,41747.0,41741.0,0.3316309]
[1641902734616,0.00703438,41747.0,41741.0,0.3216309]
[1641902734816,0.00697438,41747.0,41741.0,0.3216309]
[1641902735018,0.4154896,41747.0,41741.0,0.3216309]
[1641902735416,0.4264896,41747.0,41741.0,0.3306309]
[1641902735820,0.4264896,41747.0,41741.0,0.3806309]
[1641902736620,0.4154896,41747.0,41741.0,0.3716309]
[1641902737261,0.4154896,41747.0,41741.0,0.1]
[1641902737462,0.4324896,41747.0,41741.0,0.109]
[1641902737660,0.4324896,41747.0,41741.0,0.009]
[1641902737863,0.4324896,41747.0,41741.0,0.00894]
[1641902738064,0.43373883,41747.0,41741.0,0.00894]
[1641902738267,0.51901412,41745.0,41741.0,0.00894]
[1641902738462,0.146266,41744.0,41741.0,0.00894]
[1641902738762,0.146266,41744.0,41740.0,0.00057192]
[1641902739262,0.146266,41744.0,41740.0,0.00051192]
[1641902739462,0.163266,41744.0,41740.0,0.00056948]
[1641902739962,0.017,41744.0,41740.0,0.00056948]
[1641902740162,0.017,41744.0,41740.0,0.00050948]
[1641902740560,0.017,41744.0,41737.0,0.3914142]
[1641902740767,0.51901412,41745.0,41737.0,0.3414142]
[1641902741409,0.53201412,41745.0,41737.0,0.3514142]
[1641902742009,0.53201412,41745.0,41737.0,0.4014142]
[1641902742211,0.53201412,41745.0,41737.0,0.4110002]
[1641902742812,0.51901412,41745.0,41737.0,0.4010002]
[1641902743013,0.51901412,41745.0,41739.0,0.00072311]
[1641902743419,0.53101412,41745.0,41739.0,0.00072311]
[1641902743612,0.27456966,41745.0,41739.0,0.00072311]
[1641902743813,0.27456966,41745.0,41739.0,0.00066311]
[1641902744214,0.27456966,41745.0,41740.0,0.00072309]
[1641902744861,0.26256966,41745.0,41740.0,0.00072309]
[1641902745062,0.26256966,41745.0,41740.0,0.00066309]
[1641902745461,0.41713499,41747.0,41744.0,0.28584232]
[1641902745661,0.375157,41746.0,41744.0,0.28584232]
[1641902745861,0.375157,41746.0,41744.0,0.33584232]
[1641902746365,0.375157,41746.0,41744.0,0.33578232]
[1641902746963,0.375097,41746.0,41744.0,0.28584232]
[1641902747162,0.375097,41746.0,41739.0,0.34759242]
[1641902747363,0.00816361,41747.0,41739.0,0.39759242]
[1641902747563,0.077,41746.0,41739.0,0.39759242]
[1641902748163,0.31974264,41745.0,41739.0,0.39759242]
[1641902748365,0.077,41746.0,41739.0,0.82898019]
[1641902748810,0.00816361,41747.0,41739.0,0.82898019]
[1641902749011,0.00085746,41746.0,41739.0,0.82898019]
[1641902749412,0.03885746,41746.0,41739.0,0.45559242]
[1641902749611,0.03885746,41746.0,41739.0,0.83505873]
[1641902750013,0.03885746,41746.0,41745.0,0.23908632]
[1641902750313,0.03885746,41746.0,41745.0,0.22908632]
[1641902750518,0.03885746,41746.0,41745.0,0.227789]
[1641902750519,0.88885746,41746.0,41745.0,0.227789]
[1641902750713,0.80126538,41745.0,41739.0,0.72705873]
[1641902750915,0.00126538,41745.0,41740.0,0.3850941]
[1641902751118,0.00126538,41745.0,41739.0,0.34759242]
[1641902751316,0.00126538,41745.0,41740.0,0.2437927]
[1641902751614,0.00120538,41745.0,41740.0,0.63234723]
[1641902751815,0.00120538,41745.0,41740.0,0.2527927]
[1641902752466,0.00120538,41745.0,41740.0,0.63289876]
[1641902752865,0.00114538,41745.0,41740.0,0.62389876]
[1641902753568,0.55072373,41746.0,41741.0,0.2]
[1641902753775,0.55062867,41746.0,41742.0,0.0477]
[1641902753965,0.55062867,41746.0,41743.0,0.62346236]
[1641902754167,0.55062867,41746.0,41744.0,0.422847]
[1641902754365,0.55062867,41746.0,41744.0,0.472847]
[1641902754665,0.55062867,41746.0,41744.0,1.12353015]
[1641902755066,0.54994,41746.0,41744.0,1.12353015]
[1641902755268,0.54988,41746.0,41745.0,0.99860936]
[1641902755467,0.54988,41746.0,41745.0,1.04630936]
[1641902755669,0.54988,41746.0,41745.0,0.622847]
[1641902755866,0.54988,41746.0,41745.0,1.07247161]
[1641902756512,0.00070317,41748.0,41745.0,1.07247161]
[1641902756711,0.00070317,41748.0,41747.0,1.225087]
[1641902756912,0.00070317,41748.0,41747.0,1.14549436]
[1641902757314,0.00064317,41748.0,41747.0,1.59549436]
[1641902757513,0.00072186,41750.0,41749.0,0.59360792]
[1641902757711,0.00072186,41750.0,41749.0,1.81433883]
[1641902757912,0.00072186,41750.0,41749.0,1.86433883]
[1641902758111,0.00072186,41750.0,41749.0,1.96433883]
[1641902758511,0.00066186,41750.0,41749.0,1.96433883]
[1641902758713,0.55,41755.0,41749.0,1.96433883]
[1641902758918,0.55,41755.0,41751.0,0.19994]
[1641902759116,0.55,41755.0,41753.0,0.19988]
[1641902759313,0.55,41755.0,41754.0,0.9759498]
[1641902759769,0.54994,41755.0,41754.0,0.9759498]
[1641902760363,0.54994,41755.0,41754.0,0.9758898]
[1641902760972,0.54988,41755.0,41754.0,0.9758898]
[1641902761366,0.54988,41755.0,41754.0,0.7760098]
[1641902761572,0.54988,41755.0,41754.0,0.7899498]
[1641902762169,0.599,41756.0,41754.0,0.9899498]
[1641902762368,0.599,41756.0,41755.0,0.42215026]
[1641902762568,0.599,41756.0,41755.0,0.79729726]
[1641902762774,0.599,41756.0,41755.0,0.375087]
[1641902762969,0.599,41756.0,41755.0,0.75714021]
[1641902763370,0.59894,41756.0,41755.0,0.75714021]
[1641902763610,0.59894,41756.0,41755.0,0.77114021]
[1641902764010,0.59894,41756.0,41755.0,0.77108021]
[1641902764215,0.59894,41756.0,41755.0,0.389027]
[1641902764611,0.59888,41756.0,41755.0,0.389027]
[1641902764910,0.59888,41756.0,41755.0,0.375027]
[1641902765310,0.59888,41756.0,41755.0,0.374967]
[1641902765510,0.59888,41756.0,41755.0,0.016]
[1641902765912,0.59882,41756.0,41755.0,0.016]
[1641902766717,0.59882,41756.0,41755.0,0.01594]
[1641902767013,0.59882,41756.0,41755.0,0.25594]
[1641902767267,0.59876,41756.0,41755.0,0.25594]
[1641902767460,0.59876,41756.0,41755.0,0.27094]
[1641902767660,0.59876,41756.0,41755.0,0.255]
[1641902767860,0.59876,41756.0,41755.0,0.25494]
[1641902768460,0.5987,41756.0,41755.0,0.25494]
[1641902769059,0.5987,41756.0,41755.0,0.23988]
[1641902769660,0.59864,41756.0,41755.0,0.25288]
[1641902770260,0.59864,41756.0,41755.0,0.25282]
[1641902770863,0.59858,41756.0,41755.0,0.28982]
[1641902771515,0.59858,41756.0,41755.0,0.30276]
[1641902771715,0.59858,41756.0,41755.0,0.25282]
[1641902772117,0.59852,41756.0,41755.0,0.34074]
[1641902772523,0.00071417,41758.0,41756.0,1.15]
[1641902772718,0.00071417,41758.0,41757.0,0.84622536]
[1641902772918,0.00071417,41758.0,41757.0,0.66088222]
[1641902773117,0.00071417,41758.0,41757.0,0.86088222]
[1641902773318,0.00071379,41758.0,41757.0,1.16038222]
[1641902773519,0.00071379,41758.0,41757.0,1.60770449]
[1641902773720,0.00071379,41758.0,41757.0,1.88467005]
[1641902774321,0.42346236,41767.0,41757.0,1.88467005]
[1641902774524,0.2690496,41768.0,41757.0,1.55770449]
[1641902774768,0.2690496,41768.0,41758.0,0.43324147]
[1641902774962,0.2690496,41768.0,41759.0,0.0477]
[1641902775561,0.2690496,41768.0,41759.0,0.46066073]
[1641902776161,0.2690496,41768.0,41759.0,0.7839855]
[1641902776563,0.00126591,41771.0,41760.0,0.2]
[1641902776766,0.00048074,41766.0,41763.0,0.30114449]
[1641902776963,0.00042074,41766.0,41765.0,0.375063]
[1641902777168,0.00042074,41766.0,41765.0,0.472763]
[1641902777363,0.00042074,41766.0,41765.0,0.82400745]
[1641902777563,0.00036074,41766.0,41765.0,0.83800745]
[1641902777963,1.00020823,41780.0,41765.0,0.83800745]
[1641902778164,1.00020823,41780.0,41770.0,0.32390081]
[1641902778365,0.55,41780.0,41772.0,0.2836591]
[1641902778816,0.25911406,41778.0,41773.0,0.3890565]
[1641902779618,0.25911406,41778.0,41773.0,0.3970565]
[1641902780019,0.55,41780.0,41773.0,0.3970565]
[1641902780220,0.55,41780.0,41773.0,0.70764334]
[1641902780824,0.55,41780.0,41773.0,0.69964334]
[1641902781421,0.00085718,41779.0,41778.0,0.3929734]
[1641902781921,0.00085718,41779.0,41778.0,0.3929134]
[1641902782562,0.00079718,41779.0,41773.0,0.52058684]
[1641902782765,0.88224261,41780.0,41773.0,0.2]
[1641902783263,0.44985041,41776.0,41770.0,0.0977]
[1641902783661,0.44985041,41776.0,41773.0,0.01]
[1641902783864,0.26150654,41774.0,41773.0,0.01]
[1641902784264,0.44985041,41776.0,41773.0,0.01]
[1641902784466,0.44985041,41776.0,41773.0,0.00994]
[1641902784868,0.44985041,41776.0,41771.0,0.38903044]
[1641902785064,0.88224261,41780.0,41772.0,0.375063]
[1641902785267,0.24619247,41777.0,41771.0,0.38903044]
[1641902785465,0.24619247,41777.0,41772.0,0.375063]
[1641902785665,0.24619247,41777.0,41772.0,0.386063]
[1641902786319,1.35,41776.0,41767.0,0.3058]
[1641902786518,1.35122427,41776.0,41762.0,0.42732058]
[1641902787118,0.24603261,41765.0,41763.0,0.38227825]
[1641902787424,0.00085722,41773.0,41764.0,0.375063]
[1641902787618,0.00085722,41773.0,41764.0,0.365063]
[1641902788219,0.00079722,41773.0,41764.0,0.365063]
[1641902788422,0.30453757,41774.0,41765.0,0.25725741]
[1641902788621,0.30453757,41774.0,41766.0,0.375063]
[1641902789620,0.30453757,41774.0,41766.0,0.014]
[1641902790067,0.30453757,41774.0,41769.0,0.42271159]
[1641902790463,0.30453757,41774.0,41766.0,0.014]
[1641902790863,0.30453757,41774.0,41763.0,0.60302583]
[1641902791063,0.71617508,41774.0,41764.0,0.374973]
[1641902791267,0.71617508,41774.0,41764.0,0.37436758]
[1641902791463,0.71617508,41774.0,41764.0,0.72862096]
[1641902791663,0.30453757,41774.0,41764.0,0.74262096]
[1641902792770,0.30453757,41774.0,41764.0,0.72862096]
[1641902793612,0.70244405,41774.0,41764.0,0.74262096]
[1641902794212,0.30453757,41774.0,41764.0,0.74262096]
[1641902794812,0.30453757,41774.0,41764.0,0.73262096]
[1641902795420,0.30453757,41774.0,41764.0,0.71862096]
[1641902795714,0.30453757,41774.0,41764.0,0.73262096]
[1641902796013,0.30453757,41774.0,41771.0,0.47327485]
[1641902796214,0.30453757,41774.0,41764.0,0.214]
[1641902796415,0.30453757,41774.0,41765.0,0.374954]
[1641902797270,0.30453757,41774.0,41770.0,0.45897874]
[1641902797666,0.30453757,41774.0,41765.0,0.014]
[1641902798172,0.30453757,41774.0,41766.0,0.374954]
[1641902798767,0.30453757,41774.0,41766.0,0.82644683]
[1641902799168,0.70826005,41774.0,41766.0,0.82644683]
[1641902799770,0.70826005,41774.0,41766.0,0.84044683]
[1641902800170,0.391559,41768.0,41766.0,0.46549283]
[1641902800368,0.391559,41768.0,41767.0,0.374954]
[1641902800772,0.391559,41768.0,41767.0,0.374894]
[1641902801413,0.391499,41768.0,41767.0,0.374894]
[1641902801613,0.391499,41768.0,41767.0,0.391894]
[1641902802014,0.30453757,41774.0,41767.0,0.391834]
[1641902803016,0.30453757,41774.0,41767.0,0.474834]
[1641902803216,0.62990303,41774.0,41767.0,0.374834]
[1641902803419,0.62990303,41774.0,41766.0,0.45149283]
[1641902803715,0.62990303,41774.0,41767.0,0.015]
[1641902804963,0.62990303,41774.0,41766.0,0.45149283]
[1641902805764,0.62990303,41774.0,41766.0,0.46549283]
[1641902807567,0.62990303,41774.0,41766.0,0.45149283]
[1641902807769,0.62990303,41774.0,41766.0,0.46449283]
[1641902808172,0.32536546,41774.0,41766.0,0.66449283]
[1641902808372,0.00071567,41775.0,41767.0,0.374967]
[1641902808620,0.00071567,41775.0,41767.0,0.524967]
[1641902808815,0.00065567,41775.0,41767.0,0.524967]
[1641902809017,0.00071568,41775.0,41767.0,0.524967]
[1641902809215,0.00071568,41775.0,41773.0,0.35503032]
[1641902809417,0.00071568,41775.0,41773.0,0.35497032]
[1641902809615,0.00071568,41775.0,41773.0,0.36097032]
[1641902809817,0.05071568,41775.0,41773.0,0.36097032]
[1641902810018,0.05065568,41775.0,41773.0,0.36097032]
[1641902810216,0.05,41775.0,41768.0,0.7144297]
[1641902810416,0.05,41775.0,41769.0,0.374967]
[1641902810616,0.05,41775.0,41770.0,0.40800464]
[1641902810818,0.05,41775.0,41771.0,0.374967]
[1641902811018,0.55,41780.0,41771.0,0.374967]
[1641902811322,0.55,41780.0,41770.0,0.40800464]
[1641902811520,0.00040058,41776.0,41770.0,0.40800464]
[1641902811818,0.00040058,41776.0,41775.0,0.29726104]
[1641902812464,0.00034058,41776.0,41775.0,0.29726104]
[1641902812665,0.00040059,41778.0,41775.0,0.29726104]
[1641902813066,0.00040059,41778.0,41775.0,0.64997185]
[1641902813667,0.00034059,41778.0,41775.0,0.66297185]
[1641902813873,0.55,41780.0,41776.0,0.374967]
[1641902814068,0.55,41780.0,41777.0,0.40292096]
[1641902814268,0.55,41780.0,41777.0,0.40286096]
[1641902814868,0.54994,41780.0,41777.0,0.40286096]
[1641902815068,0.54994,41780.0,41777.0,0.74224668]
[1641902815268,0.54994,41780.0,41777.0,0.94224668]
[1641902815468,0.54994,41780.0,41777.0,0.94218668]
[1641902815668,0.54994,41780.0,41777.0,0.95818668]
[1641902816125,0.54988,41780.0,41777.0,0.95818668]
[1641902816326,0.54988,41780.0,41778.0,0.0477]
[1641902816824,0.54988,41780.0,41778.0,0.04764]
[1641902817524,0.54982,41780.0,41778.0,0.04764]
[1641902817725,0.54982,41780.0,41778.0,0.06664]
[1641902817927,0.54982,41780.0,41778.0,0.06658]
[1641902818527,0.54976,41780.0,41778.0,0.06658]
[1641902818727,0.24592857,41779.0,41778.0,0.06658]
[1641902819028,0.24592857,41779.0,41778.0,0.04758]
[1641902819332,0.24592857,41779.0,41778.0,0.04752]
[1641902819528,0.54976,41780.0,41778.0,0.04752]
[1641902819767,0.54976,41780.0,41778.0,0.07052]
[1641902819970,0.5497,41780.0,41778.0,0.07052]
[1641902820472,0.82068701,41780.0,41778.0,0.07046]
[1641902820868,0.82068701,41780.0,41778.0,0.04746]
[1641902821070,0.5497,41780.0,41778.0,0.28746]
[1641902821571,0.5497,41780.0,41778.0,0.2874]
[1641902821771,0.5497,41780.0,41778.0,0.3224]
[1641902821976,0.88705897,41780.0,41778.0,0.3224]
[1641902822173,0.54964,41780.0,41778.0,0.3224]
[1641902822571,0.54964,41780.0,41778.0,0.4224]
[1641902822772,0.54964,41780.0,41778.0,0.42234]
[1641902822973,0.54964,41780.0,41778.0,0.38734]
[1641902823172,0.54964,41780.0,41778.0,0.28734]
[1641902823373,0.54958,41780.0,41778.0,0.65926991]
[1641902823821,0.54958,41780.0,41778.0,0.70126991]
[1641902824019,0.54958,41780.0,41778.0,0.90120991]
[1641902824220,0.54958,41780.0,41779.0,0.374967]
[1641902824623,0.54952,41780.0,41779.0,0.474967]
[1641902825219,0.54952,41780.0,41779.0,0.474907]
[1641902825822,0.54946,41780.0,41779.0,0.499907]
[1641902826426,0.54946,41780.0,41779.0,0.399847]
[1641902826625,0.54946,41780.0,41779.0,0.449847]
[1641902827026,0.5494,41780.0,41779.0,0.424847]
[1641902827669,0.5494,41780.0,41779.0,0.449787]
[1641902827870,0.5494,41780.0,41779.0,0.399847]
[1641902828270,0.54934,41780.0,41779.0,0.399847]
[1641902829072,0.54934,41780.0,41779.0,0.374787]
[1641902829775,0.54928,41780.0,41779.0,0.399787]
[1641902830472,0.54928,41780.0,41779.0,0.399727]
[1641902831121,0.54922,41780.0,41779.0,0.374727]
[1641902831623,0.54922,41780.0,41779.0,0.374667]
[1641902831823,0.54922,41780.0,41779.0,0.399667]
[1641902832225,0.54916,41780.0,41779.0,0.399667]
[1641902832625,0.54916,41780.0,41779.0,0.025]
[1641902832824,0.54916,41780.0,41779.0,0.02494]
[1641902833024,0.54916,41780.0,41775.0,0.74997185]
[1641902833425,0.54916,41780.0,41775.0,0.64997185]